[Event "Late-Titled-Tuesday-Blitz-June-04-2024"]
[Site "Chess.com"]
[Date "2024.06.04"]
[Round "2"]
[White "Kacparov"]
[Black "ericovski"]
[Result "1/2-1/2"]
[WhiteElo "2907"]
[BlackElo "2587"]
[TimeControl "180+1"]
[EndTime "14:18:22 PDT"]
[Termination "Game drawn - insufficient material"]

1. e4 {[%clk 0:02:58.8]} 1... c6 {[%clk 0:02:53.1]} 2. d4 {[%clk 0:02:58.7]}
2... d5 {[%clk 0:02:54]} 3. e5 {[%clk 0:02:58.8]} 3... Bf5 {[%clk 0:02:53.4]} 4.
Nf3 {[%clk 0:02:59]} 4... e6 {[%clk 0:02:52.5]} 5. Be2 {[%clk 0:02:59.6]} 5...
c5 {[%clk 0:02:46.9]} 6. O-O {[%clk 0:02:58.6]} 6... Nc6 {[%clk 0:02:45.8]} 7.
Be3 {[%clk 0:02:58]} 7... cxd4 {[%clk 0:02:42]} 8. Nxd4 {[%clk 0:02:57.8]} 8...
Nge7 {[%clk 0:02:41.8]} 9. c4 {[%clk 0:02:56.7]} 9... Nxd4 {[%clk 0:02:36.6]}
10. Bxd4 {[%clk 0:02:55.1]} 10... Nc6 {[%clk 0:02:36.6]} 11. cxd5 {[%clk
0:02:32]} 11... Qxd5 {[%clk 0:02:35.9]} 12. Bc3 {[%clk 0:02:31.6]} 12... Qxd1
{[%clk 0:02:33]} 13. Rxd1 {[%clk 0:02:32.5]} 13... Be7 {[%clk 0:02:31.5]} 14.
Bf3 {[%clk 0:02:28.9]} 14... Rd8 {[%clk 0:02:27.2]} 15. Rxd8+ {[%clk 0:02:15]}
15... Bxd8 {[%clk 0:02:25.8]} 16. Nd2 {[%clk 0:02:15.6]} 16... Bc7 {[%clk
0:02:24.9]} 17. Nc4 {[%clk 0:02:00.3]} 17... O-O {[%clk 0:02:20.9]} 18. Rd1
{[%clk 0:01:52.8]} 18... Rd8 {[%clk 0:02:19.4]} 19. Rxd8+ {[%clk 0:01:49.7]}
19... Nxd8 {[%clk 0:01:49.2]} 20. Bd4 {[%clk 0:01:45.4]} 20... a6 {[%clk
0:01:33.8]} 21. Nd6 {[%clk 0:01:29]} 21... Nc6 {[%clk 0:01:25.8]} 22. Bc5 {[%clk
0:01:13.2]} 22... Nxe5 {[%clk 0:01:22.6]} 23. Bxb7 {[%clk 0:01:12.6]} 23... Nd3
{[%clk 0:01:19]} 24. Ba3 {[%clk 0:01:09.7]} 24... a5 {[%clk 0:01:14.5]} 25. Nxf5
{[%clk 0:01:06]} 25... exf5 {[%clk 0:01:15.4]} 26. Ba6 {[%clk 0:00:58.8]} 26...
Nb4 {[%clk 0:01:08.4]} 27. Bc4 {[%clk 0:00:58.5]} 27... Be5 {[%clk 0:00:58.4]}
28. Kf1 {[%clk 0:00:43.1]} 28... Kf8 {[%clk 0:00:57.9]} 29. Ke2 {[%clk
0:00:42.7]} 29... Ke8 {[%clk 0:00:55.2]} 30. Bb3 {[%clk 0:00:34]} 30... Bxh2
{[%clk 0:00:42.6]} 31. g3 {[%clk 0:00:33.4]} 31... f4 {[%clk 0:00:42.9]} 32. g4
{[%clk 0:00:33.5]} 32... f3+ {[%clk 0:00:40.6]} 33. Kxf3 {[%clk 0:00:33.5]}
33... Be5 {[%clk 0:00:40.1]} 34. Ke4 {[%clk 0:00:33.1]} 34... Bd6 {[%clk
0:00:35.3]} 35. f4 {[%clk 0:00:32.4]} 35... f6 {[%clk 0:00:32.4]} 36. Bg8 {[%clk
0:00:29.4]} 36... h6 {[%clk 0:00:32]} 37. Kf5 {[%clk 0:00:26.6]} 37... Ke7
{[%clk 0:00:28]} 38. Bc4 {[%clk 0:00:26.4]} 38... g5 {[%clk 0:00:26.7]} 39. fxg5
{[%clk 0:00:25.8]} 39... hxg5 {[%clk 0:00:27.5]} 40. Ke4 {[%clk 0:00:22.5]}
40... Nc6 {[%clk 0:00:23.8]} 41. Bxd6+ {[%clk 0:00:20.2]} 41... Kxd6 {[%clk
0:00:24.7]} 42. Kf5 {[%clk 0:00:19.4]} 42... Ke7 {[%clk 0:00:22.6]} 43. a3
{[%clk 0:00:19.2]} 43... a4 {[%clk 0:00:20.9]} 44. Ke4 {[%clk 0:00:17.5]} 44...
Ne5 {[%clk 0:00:19.5]} 45. Be2 {[%clk 0:00:16.7]} 45... Kd6 {[%clk 0:00:18.8]}
46. Kf5 {[%clk 0:00:17.1]} 46... Ke7 {[%clk 0:00:19.1]} 47. Bb5 {[%clk 0:00:16]}
47... Nf7 {[%clk 0:00:13.2]} 48. Bxa4 {[%clk 0:00:16.2]} 48... Nh6+ {[%clk
0:00:13.6]} 49. Ke4 {[%clk 0:00:15.7]} 49... Nxg4 {[%clk 0:00:14.5]} 50. b4
{[%clk 0:00:15.8]} 50... Kd6 {[%clk 0:00:13.9]} 51. Kf5 {[%clk 0:00:12]} 51...
Ne3+ {[%clk 0:00:13.9]} 52. Ke4 {[%clk 0:00:09.3]} 52... Nc4 {[%clk 0:00:13.1]}
53. Kf5 {[%clk 0:00:09]} 53... Nxa3 {[%clk 0:00:08.2]} 54. Kxf6 {[%clk
0:00:09.2]} 54... g4 {[%clk 0:00:08.7]} 55. Bd1 {[%clk 0:00:09.1]} 55... g3
{[%clk 0:00:08.8]} 56. Bf3 {[%clk 0:00:09.4]} 56... Nc2 {[%clk 0:00:08.5]} 57.
Kg5 {[%clk 0:00:09]} 57... Nxb4 {[%clk 0:00:06.7]} 58. Kf4 {[%clk 0:00:08.9]}
58... Nd3+ {[%clk 0:00:06.2]} 59. Kxg3 {[%clk 0:00:09.1]} 1/2-1/2

[Event "Late-Titled-Tuesday-Blitz-June-04-2024"]
[Site "Chess.com"]
[Date "2024.06.04"]
[Round "2"]
[White "protectiago"]
[Black "Road2GM3000"]
[Result "0-1"]
[WhiteElo "2119"]
[BlackElo "2446"]
[TimeControl "180+1"]
[EndTime "14:18:22 PDT"]
[Termination "Road2GM3000 won by resignation"]

1. d4 {[%clk 0:02:59.6]} 1... d5 {[%clk 0:02:59.4]} 2. c4 {[%clk 0:02:59.8]}
2... c6 {[%clk 0:02:59.6]} 3. g3 {[%clk 0:02:58.1]} 3... Nf6 {[%clk 0:02:59.2]}
4. Qc2 {[%clk 0:02:58.2]} 4... g6 {[%clk 0:02:58.8]} 5. Bg2 {[%clk 0:02:57.6]}
5... Bg7 {[%clk 0:02:53.4]} 6. Nf3 {[%clk 0:02:57]} 6... O-O {[%clk 0:02:51.8]}
7. O-O {[%clk 0:02:56.5]} 7... Bf5 {[%clk 0:02:50.2]} 8. Qb3 {[%clk 0:02:56.5]}
8... Qb6 {[%clk 0:02:50.2]} 9. Nc3 {[%clk 0:02:54.3]} 9... Nbd7 {[%clk
0:02:48.1]} 10. Bf4 {[%clk 0:02:54]} 10... dxc4 {[%clk 0:02:46]} 11. Qxc4 {[%clk
0:02:53.1]} 11... Qxb2 {[%clk 0:02:40.3]} 12. Ne5 {[%clk 0:02:10.8]} 12... Nxe5
{[%clk 0:02:38.2]} 13. dxe5 {[%clk 0:02:08.1]} 13... Be6 {[%clk 0:02:16.4]} 14.
Qc5 {[%clk 0:01:43.6]} 14... Nd7 {[%clk 0:01:55.2]} 15. Qe3 {[%clk 0:01:41.6]}
15... Nb6 {[%clk 0:01:33.5]} 16. Rab1 {[%clk 0:01:31.6]} 16... Qa3 {[%clk
0:01:33.3]} 17. Nd5 {[%clk 0:01:21.7]} 17... Qxe3 {[%clk 0:01:31.9]} 18. Nxe7+
{[%clk 0:01:21.7]} 18... Kh8 {[%clk 0:01:29.8]} 19. Bxe3 {[%clk 0:01:09.5]}
19... Rae8 {[%clk 0:01:17.6]} 20. Nxc6 {[%clk 0:01:08.9]} 20... bxc6 {[%clk
0:01:17.6]} 21. Bxc6 {[%clk 0:01:09]} 21... Rc8 {[%clk 0:01:12.8]} 22. Bxb6
{[%clk 0:01:06.4]} 22... Rxc6 {[%clk 0:00:54.7]} 23. Bd4 {[%clk 0:01:00.7]}
23... Bxa2 {[%clk 0:00:50.1]} 24. Ra1 {[%clk 0:01:00.2]} 24... Bd5 {[%clk
0:00:31.7]} 25. Rxa7 {[%clk 0:00:57.4]} 25... Re8 {[%clk 0:00:28]} 26. f4 {[%clk
0:00:55.2]} 26... Rc2 {[%clk 0:00:26.5]} 27. Kf2 {[%clk 0:00:48.6]} 27... Bc4
{[%clk 0:00:20.8]} 28. Re1 {[%clk 0:00:48.9]} 28... h5 {[%clk 0:00:20.6]} 29.
Rc7 {[%clk 0:00:45.4]} 29... Ra8 {[%clk 0:00:18.9]} 30. Ke3 {[%clk 0:00:27.3]}
30... Raa2 {[%clk 0:00:18.6]} 31. Rc8+ {[%clk 0:00:19.7]} 31... Kh7 {[%clk
0:00:18.3]} 32. h3 {[%clk 0:00:14.9]} 32... Rxe2+ {[%clk 0:00:16.4]} 33. Rxe2
{[%clk 0:00:15.4]} 33... Rxe2+ {[%clk 0:00:17.1]} 34. Kf3 {[%clk 0:00:15.9]}
34... Rc2 {[%clk 0:00:17.8]} 35. Ke3 {[%clk 0:00:15.6]} 35... Bb3 {[%clk
0:00:18.2]} 36. Rxc2 {[%clk 0:00:14.9]} 36... Bxc2 {[%clk 0:00:18.4]} 37. g4
{[%clk 0:00:15.5]} 37... Bd1 {[%clk 0:00:17.3]} 38. gxh5 {[%clk 0:00:14.7]}
38... Bxh5 {[%clk 0:00:17.6]} 39. Ke4 {[%clk 0:00:14.2]} 39... Bd1 {[%clk
0:00:17.2]} 40. Ke3 {[%clk 0:00:12.7]} 40... Bc2 {[%clk 0:00:17.7]} 41. Bc5
{[%clk 0:00:13.1]} 41... Bf5 {[%clk 0:00:18.2]} 42. h4 {[%clk 0:00:12.1]} 42...
Kg8 {[%clk 0:00:18.7]} 43. Be7 {[%clk 0:00:12.1]} 43... Bf8 {[%clk 0:00:19]} 44.
Bg5 {[%clk 0:00:11.8]} 44... Bc5+ {[%clk 0:00:19.6]} 45. Kf3 {[%clk 0:00:11.2]}
45... Kf8 {[%clk 0:00:20.3]} 46. Ke2 {[%clk 0:00:10.5]} 46... Be7 {[%clk
0:00:20.9]} 47. Bh6+ {[%clk 0:00:09.4]} 47... Ke8 {[%clk 0:00:21.5]} 48. Ke3
{[%clk 0:00:09]} 48... Bxh4 {[%clk 0:00:21.9]} 49. Kd4 {[%clk 0:00:08.7]} 49...
Kd7 {[%clk 0:00:21.8]} 50. Kc5 {[%clk 0:00:08.9]} 50... Ke6 {[%clk 0:00:21.6]}
51. Kd4 {[%clk 0:00:09.2]} 51... Be1 {[%clk 0:00:21.2]} 52. Ke3 {[%clk
0:00:09.1]} 52... Bc3 {[%clk 0:00:21.4]} 53. Kf3 {[%clk 0:00:08.8]} 53... Kd5
{[%clk 0:00:20.9]} 54. Bg5 {[%clk 0:00:07.9]} 54... Kc4 {[%clk 0:00:20.6]} 55.
Bf6 {[%clk 0:00:08.1]} 55... Bd2 {[%clk 0:00:18.6]} 56. Bg5 {[%clk 0:00:08.5]}
56... Kd3 {[%clk 0:00:19.1]} 57. Bh6 {[%clk 0:00:08.8]} 57... Be4+ {[%clk
0:00:18.5]} 58. Kg4 {[%clk 0:00:09.2]} 58... Ke2 {[%clk 0:00:17.5]} 59. Kg5
{[%clk 0:00:08.7]} 59... Bf5 {[%clk 0:00:17.5]} 60. Kf6 {[%clk 0:00:08.6]} 60...
Be6 {[%clk 0:00:17.4]} 61. Bg5 {[%clk 0:00:08.8]} 61... Kf3 {[%clk 0:00:17.3]}
62. Bh6 {[%clk 0:00:08.4]} 62... Bxf4 {[%clk 0:00:17]} 63. Bg7 {[%clk
0:00:08.3]} 63... Ke4 {[%clk 0:00:17]} 64. Ke7 {[%clk 0:00:08.3]} 64... Bxe5
{[%clk 0:00:17.5]} 65. Bh6 {[%clk 0:00:07.9]} 65... Kf5 {[%clk 0:00:17.1]} 66.
Bd2 {[%clk 0:00:06.5]} 66... g5 {[%clk 0:00:17.7]} 0-1

[Event "Late-Titled-Tuesday-Blitz-June-04-2024"]
[Site "Chess.com"]
[Date "2024.06.04"]
[Round "2"]
[White "dretch"]
[Black "el_sporco"]
[Result "1-0"]
[WhiteElo "2866"]
[BlackElo "2555"]
[TimeControl "180+1"]
[EndTime "14:18:24 PDT"]
[Termination "dretch won by resignation"]

1. d4 {[%clk 0:03:00.9]} 1... Nf6 {[%clk 0:02:58.9]} 2. c4 {[%clk 0:03:01]} 2...
e6 {[%clk 0:02:59.1]} 3. Nf3 {[%clk 0:02:58.2]} 3... b6 {[%clk 0:02:56.8]} 4. g3
{[%clk 0:02:57.7]} 4... Ba6 {[%clk 0:02:55.6]} 5. b3 {[%clk 0:02:57.8]} 5...
Bb4+ {[%clk 0:02:53.1]} 6. Bd2 {[%clk 0:02:56.9]} 6... Be7 {[%clk 0:02:53.6]} 7.
Bg2 {[%clk 0:02:56.2]} 7... c6 {[%clk 0:02:54.3]} 8. O-O {[%clk 0:02:54.3]} 8...
d5 {[%clk 0:02:53.7]} 9. Qc2 {[%clk 0:02:54.2]} 9... O-O {[%clk 0:02:53.4]} 10.
Rc1 {[%clk 0:02:54.2]} 10... Nbd7 {[%clk 0:02:49]} 11. a4 {[%clk 0:02:50.8]}
11... Bb7 {[%clk 0:02:38]} 12. cxd5 {[%clk 0:02:39.6]} 12... cxd5 {[%clk
0:02:09.9]} 13. Qc7 {[%clk 0:02:39]} 13... Ba6 {[%clk 0:01:58.9]} 14. Qxd8
{[%clk 0:02:35.1]} 14... Rfxd8 {[%clk 0:01:58.2]} 15. Nc3 {[%clk 0:02:35.5]}
15... Rdc8 {[%clk 0:01:43.9]} 16. Nb5 {[%clk 0:02:23]} 16... Bxb5 {[%clk
0:01:24.6]} 17. Rxc8+ {[%clk 0:02:17.3]} 17... Rxc8 {[%clk 0:01:24.3]} 18. axb5
{[%clk 0:02:18.2]} 18... Ra8 {[%clk 0:01:11.3]} 19. Ne1 {[%clk 0:01:06.3]} 19...
a5 {[%clk 0:00:47.1]} 20. bxa6 {[%clk 0:01:04.2]} 20... Nb8 {[%clk 0:00:47.5]}
21. a7 {[%clk 0:01:02.9]} 21... Nc6 {[%clk 0:00:47.6]} 22. Rc1 {[%clk
0:00:57.6]} 22... Nxa7 {[%clk 0:00:47.3]} 23. Ra1 {[%clk 0:00:47.8]} 23... Ne8
{[%clk 0:00:47.4]} 24. e4 {[%clk 0:00:45.7]} 24... Nc7 {[%clk 0:00:46.7]} 25.
exd5 {[%clk 0:00:33.8]} 25... exd5 {[%clk 0:00:47.6]} 26. Nc2 {[%clk 0:00:24.9]}
26... Bf6 {[%clk 0:00:36.8]} 27. Bf4 {[%clk 0:00:17.8]} 27... Nab5 {[%clk
0:00:21.7]} 28. Rxa8+ {[%clk 0:00:18.7]} 28... Nxa8 {[%clk 0:00:22.2]} 29. Bxd5
{[%clk 0:00:17.8]} 29... Nac7 {[%clk 0:00:22]} 30. Bc4 {[%clk 0:00:14.5]} 30...
Kf8 {[%clk 0:00:20.4]} 31. Kf1 {[%clk 0:00:11.6]} 31... Ke7 {[%clk 0:00:20.4]}
32. Ke2 {[%clk 0:00:10]} 32... Kd7 {[%clk 0:00:18.5]} 33. Kd3 {[%clk 0:00:06.6]}
33... Nd6 {[%clk 0:00:18.6]} 34. Bxd6 {[%clk 0:00:06]} 34... Kxd6 {[%clk
0:00:19.5]} 35. Bxf7 {[%clk 0:00:06.9]} 35... Nb5 {[%clk 0:00:15.9]} 36. Bc4
{[%clk 0:00:06.2]} 36... Nc7 {[%clk 0:00:15.3]} 37. Ne3 {[%clk 0:00:06.7]} 37...
g6 {[%clk 0:00:14.7]} 38. Bg8 {[%clk 0:00:06.2]} 38... h6 {[%clk 0:00:14.7]} 39.
Ng4 {[%clk 0:00:05.2]} 39... Bg7 {[%clk 0:00:14.5]} 40. f4 {[%clk 0:00:05.3]}
40... Nb5 {[%clk 0:00:14.3]} 41. Ne5 {[%clk 0:00:05.8]} 41... g5 {[%clk
0:00:11.5]} 42. Bc4 {[%clk 0:00:06]} 42... Nc7 {[%clk 0:00:11.3]} 43. fxg5
{[%clk 0:00:05.8]} 43... hxg5 {[%clk 0:00:11.5]} 44. Nf7+ {[%clk 0:00:06.3]}
44... Kc6 {[%clk 0:00:11.9]} 45. Nxg5 {[%clk 0:00:07.2]} 45... b5 {[%clk
0:00:12.8]} 46. Bf7 {[%clk 0:00:07.1]} 46... Kb6 {[%clk 0:00:12.4]} 47. Ne4
{[%clk 0:00:07.2]} 47... Ka5 {[%clk 0:00:12.7]} 48. Nc5 {[%clk 0:00:07.4]} 48...
Kb4 {[%clk 0:00:12.7]} 49. h4 {[%clk 0:00:07.9]} 49... Ka3 {[%clk 0:00:08.9]}
50. g4 {[%clk 0:00:08.2]} 50... b4 {[%clk 0:00:07.9]} 51. g5 {[%clk 0:00:08.3]}
51... Nb5 {[%clk 0:00:08.8]} 52. Ne6 {[%clk 0:00:07.5]} 52... Bh8 {[%clk
0:00:03.5]} 53. Nf4 {[%clk 0:00:07.5]} 53... Nxd4 {[%clk 0:00:02.7]} 54. h5
{[%clk 0:00:06.3]} 54... Nxb3 {[%clk 0:00:03.1]} 55. Bxb3 {[%clk 0:00:06]} 55...
Kxb3 {[%clk 0:00:03.2]} 56. Nd5 {[%clk 0:00:06.7]} 56... Ka3 {[%clk 0:00:03.1]}
57. Nxb4 {[%clk 0:00:07.1]} 57... Kxb4 {[%clk 0:00:04]} 58. h6 {[%clk
0:00:07.3]} 58... Kc5 {[%clk 0:00:04.3]} 59. g6 {[%clk 0:00:07.8]} 59... Kd6
{[%clk 0:00:05.1]} 60. g7 {[%clk 0:00:08.3]} 1-0

[Event "Late-Titled-Tuesday-Blitz-June-04-2024"]
[Site "Chess.com"]
[Date "2024.06.04"]
[Round "2"]
[White "zacachess"]
[Black "alexrustemov"]
[Result "0-1"]
[WhiteElo "2546"]
[BlackElo "2826"]
[TimeControl "180+1"]
[EndTime "14:18:24 PDT"]
[Termination "alexrustemov won on time"]

1. e4 {[%clk 0:03:00]} 1... e6 {[%clk 0:02:59.9]} 2. d4 {[%clk 0:02:59.8]} 2...
d5 {[%clk 0:03:00.2]} 3. Nc3 {[%clk 0:03:00.2]} 3... dxe4 {[%clk 0:03:00.6]} 4.
Nxe4 {[%clk 0:03:00]} 4... Bd7 {[%clk 0:03:01.2]} 5. Nf3 {[%clk 0:02:56.2]} 5...
Bc6 {[%clk 0:03:01.5]} 6. Bd3 {[%clk 0:02:55.2]} 6... Nd7 {[%clk 0:03:01.9]} 7.
O-O {[%clk 0:02:44.7]} 7... Ngf6 {[%clk 0:03:02.1]} 8. Ng3 {[%clk 0:02:23.2]}
8... Be7 {[%clk 0:03:01.4]} 9. c3 {[%clk 0:02:06.5]} 9... O-O {[%clk 0:03:00.7]}
10. Bf4 {[%clk 0:02:00.7]} 10... b6 {[%clk 0:02:45.8]} 11. Re1 {[%clk
0:01:57.8]} 11... Bb7 {[%clk 0:02:44.1]} 12. Qe2 {[%clk 0:01:56.3]} 12... c5
{[%clk 0:02:44.2]} 13. Rad1 {[%clk 0:01:37.4]} 13... Bxf3 {[%clk 0:02:40.1]} 14.
Qxf3 {[%clk 0:01:37.3]} 14... cxd4 {[%clk 0:02:40.5]} 15. Bb5 {[%clk 0:01:11.8]}
15... Qc8 {[%clk 0:02:02.1]} 16. Bc6 {[%clk 0:00:51]} 16... dxc3 {[%clk
0:01:56.6]} 17. Bxa8 {[%clk 0:00:50.2]} 17... Qxa8 {[%clk 0:01:49.3]} 18. Qxa8
{[%clk 0:00:49.9]} 18... Rxa8 {[%clk 0:01:48.4]} 19. bxc3 {[%clk 0:00:44.6]}
19... Rc8 {[%clk 0:01:44.9]} 20. Nf5 {[%clk 0:00:29.2]} 20... Bf8 {[%clk
0:01:37.8]} 21. Nd6 {[%clk 0:00:22.3]} 21... Rxc3 {[%clk 0:01:34.8]} 22. Rc1
{[%clk 0:00:20.5]} 22... Ra3 {[%clk 0:01:25.9]} 23. Rc8 {[%clk 0:00:18]} 23...
Rxa2 {[%clk 0:01:19.7]} 24. Nb5 {[%clk 0:00:10.3]} 24... a6 {[%clk 0:01:10.4]}
25. Nc7 {[%clk 0:00:07.5]} 25... Rc2 {[%clk 0:01:06.2]} 26. h3 {[%clk
0:00:04.4]} 26... Nd5 {[%clk 0:01:03.1]} 27. Bd6 {[%clk 0:00:04.4]} 27... Nxc7
{[%clk 0:01:01.8]} 28. Rxc7 {[%clk 0:00:01.9]} 28... Rxc7 {[%clk 0:01:00.7]} 29.
Bxc7 {[%clk 0:00:02.8]} 29... g5 {[%clk 0:00:25.7]} 30. Rd1 {[%clk 0:00:03.7]}
30... Nf6 {[%clk 0:00:23.5]} 31. Bd6 {[%clk 0:00:03.8]} 31... Bxd6 {[%clk
0:00:20.4]} 32. Rxd6 {[%clk 0:00:04.7]} 32... Nd5 {[%clk 0:00:21.1]} 33. Rd8+
{[%clk 0:00:04.7]} 33... Kg7 {[%clk 0:00:20.9]} 34. Ra8 {[%clk 0:00:05.6]} 34...
a5 {[%clk 0:00:21.1]} 35. f3 {[%clk 0:00:06]} 35... h5 {[%clk 0:00:21]} 36. Kf2
{[%clk 0:00:06.3]} 36... h4 {[%clk 0:00:21.5]} 37. g3 {[%clk 0:00:06.1]} 37...
hxg3+ {[%clk 0:00:20]} 38. Kxg3 {[%clk 0:00:07]} 38... Kf6 {[%clk 0:00:20.9]}
39. h4 {[%clk 0:00:05.5]} 39... gxh4+ {[%clk 0:00:20.4]} 40. Kxh4 {[%clk
0:00:06.4]} 40... Kf5 {[%clk 0:00:20.9]} 41. Kg3 {[%clk 0:00:06.5]} 41... f6
{[%clk 0:00:20]} 42. Ra7 {[%clk 0:00:06.1]} 42... Ke5 {[%clk 0:00:20.3]} 43. Ra8
{[%clk 0:00:05.7]} 43... Kd4 {[%clk 0:00:19.9]} 44. Re8 {[%clk 0:00:05.1]} 44...
e5 {[%clk 0:00:19.1]} 45. Kg4 {[%clk 0:00:05.1]} 45... b5 {[%clk 0:00:18.8]} 46.
Kf5 {[%clk 0:00:05]} 46... a4 {[%clk 0:00:18.9]} 47. Rd8 {[%clk 0:00:05.3]}
47... Kc5 {[%clk 0:00:17.8]} 48. Rc8+ {[%clk 0:00:05.1]} 48... Kb4 {[%clk
0:00:16.7]} 49. Ke6 {[%clk 0:00:05.5]} 49... Nc3 {[%clk 0:00:15.2]} 50. Kxf6
{[%clk 0:00:05.8]} 50... e4 {[%clk 0:00:15.6]} 51. f4 {[%clk 0:00:05.5]} 51...
a3 {[%clk 0:00:15.7]} 52. Re8 {[%clk 0:00:03.5]} 52... a2 {[%clk 0:00:15.3]} 53.
Ra8 {[%clk 0:00:02.5]} 53... e3 {[%clk 0:00:15.7]} 54. Rxa2 {[%clk 0:00:01.1]}
54... Nxa2 {[%clk 0:00:15.3]} 55. f5 {[%clk 0:00:02]} 55... e2 {[%clk
0:00:15.6]} 0-1

[Event "Late-Titled-Tuesday-Blitz-June-04-2024"]
[Site "Chess.com"]
[Date "2024.06.04"]
[Round "2"]
[White "jk13"]
[Black "Heinza9"]
[Result "1/2-1/2"]
[WhiteElo "2681"]
[BlackElo "2360"]
[TimeControl "180+1"]
[EndTime "14:18:27 PDT"]
[Termination "Game drawn - insufficient material"]

1. e4 {[%clk 0:03:00.9]} 1... e6 {[%clk 0:02:59.7]} 2. d3 {[%clk 0:02:59.2]}
2... d5 {[%clk 0:02:59.9]} 3. Qe2 {[%clk 0:02:59.4]} 3... Be7 {[%clk 0:02:59.1]}
4. Nf3 {[%clk 0:02:59.7]} 4... Nf6 {[%clk 0:02:58.3]} 5. g3 {[%clk 0:03:00.3]}
5... c5 {[%clk 0:02:57.9]} 6. Bg2 {[%clk 0:03:00.9]} 6... Nc6 {[%clk 0:02:58]}
7. O-O {[%clk 0:03:01.5]} 7... b6 {[%clk 0:02:58.2]} 8. e5 {[%clk 0:03:02.2]}
8... Nd7 {[%clk 0:02:57.9]} 9. c4 {[%clk 0:03:03.1]} 9... d4 {[%clk 0:02:51.7]}
10. h4 {[%clk 0:03:00.8]} 10... Bb7 {[%clk 0:02:51.8]} 11. Re1 {[%clk 0:02:58]}
11... Qc7 {[%clk 0:02:51.2]} 12. Na3 {[%clk 0:02:51]} 12... a6 {[%clk
0:02:48.3]} 13. Nc2 {[%clk 0:02:50.9]} 13... h6 {[%clk 0:02:42.2]} 14. a3 {[%clk
0:02:25.7]} 14... O-O-O {[%clk 0:02:37.3]} 15. Bd2 {[%clk 0:02:12.4]} 15... g5
{[%clk 0:02:34.9]} 16. hxg5 {[%clk 0:02:12.6]} 16... hxg5 {[%clk 0:02:35.8]} 17.
g4 {[%clk 0:02:08.3]} 17... Rdg8 {[%clk 0:02:31.1]} 18. b4 {[%clk 0:02:07.6]}
18... Nd8 {[%clk 0:01:45.1]} 19. Rab1 {[%clk 0:02:04]} 19... Bxf3 {[%clk
0:01:42.1]} 20. Qxf3 {[%clk 0:01:53.2]} 20... Qb7 {[%clk 0:01:40.8]} 21. Qg3
{[%clk 0:01:39.3]} 21... Qc7 {[%clk 0:01:40.1]} 22. bxc5 {[%clk 0:01:36]} 22...
bxc5 {[%clk 0:01:41]} 23. Qf3 {[%clk 0:01:33.6]} 23... Nxe5 {[%clk 0:01:32.6]}
24. Qa8+ {[%clk 0:01:23.8]} 24... Kd7 {[%clk 0:01:30.8]} 25. Qxa6 {[%clk
0:00:45.9]} 25... Nxg4 {[%clk 0:01:10.1]} 26. Qa4+ {[%clk 0:00:39.2]} 26... Nc6
{[%clk 0:01:00]} 27. Bxc6+ {[%clk 0:00:33.8]} 27... Qxc6 {[%clk 0:01:00.9]} 28.
Rb7+ {[%clk 0:00:33]} 28... Kd6 {[%clk 0:00:56]} 29. Qxc6+ {[%clk 0:00:29.1]}
29... Kxc6 {[%clk 0:00:56.9]} 30. Rxe7 {[%clk 0:00:28.7]} 30... Nh2 {[%clk
0:00:54.8]} 31. Kg2 {[%clk 0:00:28.2]} 31... Ng4 {[%clk 0:00:46.2]} 32. Kg3
{[%clk 0:00:24.2]} 32... Nh6 {[%clk 0:00:44.2]} 33. Ra7 {[%clk 0:00:23.9]} 33...
Nf5+ {[%clk 0:00:43.5]} 34. Kg2 {[%clk 0:00:24.2]} 34... Nh4+ {[%clk 0:00:42.1]}
35. Kf1 {[%clk 0:00:24.5]} 35... Nf3 {[%clk 0:00:41]} 36. Rd1 {[%clk 0:00:22.6]}
36... f5 {[%clk 0:00:29]} 37. Ke2 {[%clk 0:00:21.1]} 37... Nxd2 {[%clk
0:00:22.9]} 38. Kxd2 {[%clk 0:00:20.9]} 38... Ra8 {[%clk 0:00:23.3]} 39. Rxa8
{[%clk 0:00:20.6]} 39... Rxa8 {[%clk 0:00:23.1]} 40. Rh1 {[%clk 0:00:21]} 40...
Kd6 {[%clk 0:00:22.7]} 41. Rh6 {[%clk 0:00:20.8]} 41... Ke5 {[%clk 0:00:21.8]}
42. Rg6 {[%clk 0:00:20.3]} 42... g4 {[%clk 0:00:21.7]} 43. Kc1 {[%clk
0:00:17.5]} 43... Ra7 {[%clk 0:00:20.9]} 44. Kb2 {[%clk 0:00:16.5]} 44... Rh7
{[%clk 0:00:21]} 45. a4 {[%clk 0:00:15.4]} 45... Rh2 {[%clk 0:00:20.5]} 46. a5
{[%clk 0:00:15.8]} 46... Rxf2 {[%clk 0:00:20.7]} 47. a6 {[%clk 0:00:16.3]} 47...
Rh2 {[%clk 0:00:20.7]} 48. a7 {[%clk 0:00:12.2]} 48... Rh8 {[%clk 0:00:21.2]}
49. Rg7 {[%clk 0:00:12.7]} 49... Ra8 {[%clk 0:00:21.5]} 50. Na3 {[%clk
0:00:12.7]} 50... Kf4 {[%clk 0:00:19.6]} 51. Nb5 {[%clk 0:00:13]} 51... e5
{[%clk 0:00:18.6]} 52. Nc7 {[%clk 0:00:11.9]} 52... Rxa7 {[%clk 0:00:11.6]} 53.
Nd5+ {[%clk 0:00:11.7]} 53... Kf3 {[%clk 0:00:11]} 54. Rxa7 {[%clk 0:00:12.6]}
54... g3 {[%clk 0:00:10.1]} 55. Kc2 {[%clk 0:00:10.4]} 55... Kf2 {[%clk
0:00:09.8]} 56. Rf7 {[%clk 0:00:08.6]} 56... f4 {[%clk 0:00:09.5]} 57. Nxf4
{[%clk 0:00:08.4]} 57... exf4 {[%clk 0:00:09.4]} 58. Rxf4+ {[%clk 0:00:09]}
58... Ke3 {[%clk 0:00:08.9]} 59. Rg4 {[%clk 0:00:08.1]} 59... Kf3 {[%clk
0:00:09.2]} 60. Rg8 {[%clk 0:00:08.2]} 60... g2 {[%clk 0:00:09.5]} 61. Kb3
{[%clk 0:00:08.6]} 61... Kf2 {[%clk 0:00:07.3]} 62. Ka4 {[%clk 0:00:08.5]} 62...
g1=Q {[%clk 0:00:07.3]} 63. Rxg1 {[%clk 0:00:08.7]} 63... Kxg1 {[%clk
0:00:08.2]} 64. Kb5 {[%clk 0:00:09]} 64... Kf2 {[%clk 0:00:09.1]} 65. Kxc5
{[%clk 0:00:09.6]} 65... Ke3 {[%clk 0:00:09.8]} 66. Kb5 {[%clk 0:00:09.3]} 66...
Kxd3 {[%clk 0:00:10.4]} 67. c5 {[%clk 0:00:10.2]} 67... Ke3 {[%clk 0:00:10.6]}
68. c6 {[%clk 0:00:11.1]} 68... d3 {[%clk 0:00:11.5]} 69. c7 {[%clk 0:00:11.9]}
69... d2 {[%clk 0:00:12.4]} 70. c8=Q {[%clk 0:00:12.4]} 70... d1=Q {[%clk
0:00:12.8]} 71. Qc3+ {[%clk 0:00:12.5]} 71... Qd3+ {[%clk 0:00:12.1]} 72. Qxd3+
{[%clk 0:00:12.9]} 72... Kxd3 {[%clk 0:00:13]} 1/2-1/2